bitfinex-derivatives/quotes_ETHF0:USTF0_20240927
["timestamp","ask_amount","ask_price","bid_price","bid_amount"]
[1727468558993,0.76508,2697.8,2697.6,1.7006]
[1727468559589,0.76508,2697.8,2697.6,1.33]
[1727468559780,0.3945,2697.8,2697.6,1.33]
[1727468559978,0.76508,2697.8,2697.6,1.7006]
[1727468560184,0.37059,2697.7,2697.5,1.54661]
[1727468560391,0.3706,2697.6,2697.5,0.7714]
[1727468561689,0.3706,2697.7,2697.5,1.14202]
[1727468562693,0.3945,2697.8,2697.5,0.7714]
[1727468562893,0.3945,2697.8,2697.6,1.33]
[1727468563192,0.76508,2697.8,2697.6,1.7006]
[1727468565198,0.76508,2697.8,2697.7,0.37059]
[1727468565387,0.76508,2697.8,2697.6,1.70059]
[1727468565894,0.76508,2697.8,2697.7,0.37059]
[1727468566788,0.76508,2697.8,2697.6,1.70059]
[1727468566992,0.76508,2697.8,2697.6,1.33]
[1727468567193,0.37059,2697.7,2697.6,1.7006]
[1727468568082,0.37059,2697.7,2697.6,0.3706]
[1727468569390,0.3945,2697.8,2697.5,2.47201]
[1727468569391,0.3706,2697.6,2697.5,2.47201]
[1727468569592,0.3706,2697.7,2697.5,2.1014]
[1727468569802,0.3706,2697.6,2697.5,2.47201]
[1727468570497,0.3706,2697.6,2697.5,2.1014]
[1727468570705,0.3706,2697.6,2697.5,1.33]
[1727468571204,0.3706,2697.7,2697.6,0.3706]
[1727468573503,0.37059,2697.7,2697.5,1.33]
[1727468573697,0.37059,2697.7,2697.6,0.37059]
[1727468577705,3.97288,2697.8,2697.6,0.37059]
[1727468579993,0.76508,2697.8,2697.6,0.37059]
[1727468580197,0.37059,2697.7,2697.5,1.33]
[1727468580406,3.97288,2697.8,2697.7,0.37059]
[1727468581404,0.3945,2697.8,2697.7,1.70059]
[1727468581713,0.7768,2697.9,2697.8,0.37057]
[1727468582413,1.14736,2697.9,2697.8,0.37057]
[1727468583602,0.7768,2697.9,2697.8,0.37057]
[1727468585813,1.14736,2697.9,2697.8,0.37057]
[1727468586011,0.7768,2697.9,2697.8,0.37057]
[1727468587104,1.14736,2697.9,2697.8,0.37057]
[1727468587406,2.60036171,2697.9,2697.8,0.37057]
[1727468587602,0.7768,2697.9,2697.8,0.37057]
[1727468588104,1.45300171,2698.0,2697.9,0.37056]
[1727468588408,1.45300171,2698.2,2698.1,0.37053]
[1727468588607,1.45300171,2698.2,2698.1,1.70053]
[1727468588911,2.6892906,2698.4,2698.1,1.70053]
[1727468588912,1.45300171,2698.3,2698.2,0.37052]
[1727468589112,2.57430171,2698.4,2698.3,0.37051]
[1727468589303,2.20380171,2698.4,2698.3,0.37051]
[1727468589709,1.83830171,2698.4,2698.3,1.70051]
[1727468591508,2.20879171,2698.4,2698.3,1.70051]
[1727468591709,2.20879171,2698.4,2698.2,0.3971]
[1727468591911,2.20879171,2698.4,2698.3,0.37051]
[1727468592207,2.20879171,2698.4,2698.2,0.37051]
[1727468592208,0.37051,2698.3,2698.2,0.37051]
[1727468593321,2.20880171,2698.4,2698.2,0.37052]
[1727468593504,0.37051,2698.3,2698.2,0.37052]
[1727468594601,0.92634,2698.1,2697.8,0.97226247]
[1727468594803,0.37059,2697.7,2697.5,2.80121622]
[1727468595011,2.25641,2697.9,2697.5,0.37061]
[1727468595012,0.7546,2697.6,2697.5,0.37061]
[1727468595212,1.1549,2697.6,2697.5,0.37061]
[1727468596210,1.5255,2697.6,2697.5,0.37061]
[1727468596406,1.5255,2697.6,2697.3,3.18534375]
[1727468596407,0.37063,2697.4,2697.3,0.97226247]
[1727468596608,0.37063,2697.5,2697.3,0.37064]
[1727468596807,5.81570171,2697.6,2697.3,0.37064]
[1727468597108,1.45300171,2697.5,2697.3,0.37064]
[1727468597505,0.37064,2697.4,2697.2,1.70065]
[1727468598208,1.82364171,2697.4,2697.2,1.70065]
[1727468598408,0.37064,2697.4,2697.2,1.70065]
[1727468598706,0.37064,2697.3,2697.2,1.70065]
[1727468599814,0.37064,2697.3,2697.2,1.33]
[1727468602409,0.37064,2697.3,2697.2,1.70066]
[1727468602917,0.37064,2697.3,2697.2,1.33]
[1727468603414,0.37064,2697.3,2697.2,1.70066]
[1727468603610,0.37064,2697.3,2697.2,1.33]
[1727468604312,0.37066,2697.2,2697.1,0.37067]
[1727468604517,0.3889,2697.2,2697.1,0.37067]
[1727468605417,0.75956,2697.2,2697.0,1.33]
[1727468605616,0.3889,2697.2,2697.1,0.37067]
[1727468606118,0.75956,2697.2,2697.0,1.70068]
[1727468606515,0.75956,2697.2,2697.1,0.37067]
[1727468607315,0.3889,2697.2,2697.1,0.37067]
[1727468608115,0.3889,2697.2,2697.0,1.70068]
[1727468608116,0.75956,2697.2,2697.0,1.70068]
[1727468608326,0.75956,2697.2,2697.1,0.37067]
[1727468608517,0.3889,2697.2,2697.0,1.70068]
[1727468608726,0.37069,2697.0,2696.8,1.1539]
[1727468608916,0.3707,2696.9,2696.8,0.7832]
[1727468609316,0.7817,2697.1,2696.6,1.36636247]
[1727468609317,0.37071,2696.8,2696.6,1.36636247]
[1727468609519,0.37071,2696.8,2696.4,0.763]
[1727468609520,1.33,2696.7,2696.4,0.763]
[1727468609723,1.33,2696.5,2696.1,1.33]
[1727468609925,1.33,2696.3,2695.9,0.97226247]
[1727468610229,0.92693,2696.4,2695.7,4.66614375]
[1727468610230,1.33,2696.0,2695.7,1.33]
[1727468610424,0.37082,2696.1,2695.8,0.37084]
[1727468610726,0.37082,2696.1,2695.7,1.33]
[1727468610727,0.37082,2696.1,2695.9,0.37083]
[1727468611223,1.7272,2696.2,2695.7,1.33]
[1727468611224,0.37083,2696.0,2695.8,0.37084]
[1727468611521,0.77093,2696.0,2695.8,0.37084]
[1727468611923,0.77093,2696.0,2695.7,1.70085]
[1727468611924,0.37084,2695.9,2695.7,1.70085]
[1727468612529,0.4001,2696.0,2695.3,2.89]
[1727468612727,0.4001,2696.0,2695.2,0.73822]
[1727468612728,3.2078,2695.8,2695.2,0.73822]
[1727468612921,0.37095,2695.1,2694.8,0.80098]
[1727468613118,2.89,2695.3,2694.7,0.37099]
[1727468613119,3.81733,2695.3,2694.7,0.37099]
[1727468613323,3.81733,2695.3,2694.6,0.3673]
[1727468613324,3.9956,2695.2,2694.6,0.3673]
[1727468613515,2.89,2694.8,2694.2,0.37106]
[1727468613722,0.37101,2694.7,2694.4,0.37104]
[1727468613920,6.0978,2694.8,2694.4,0.37104]
[1727468614223,0.371,2694.7,2694.3,0.37105]
[1727468614830,0.37101,2694.7,2694.4,0.37104]
[1727468615330,3.57879,2694.8,2694.5,0.37102]
[1727468616123,3.57879,2694.8,2694.2,2.89]
[1727468616124,3.57879,2694.8,2694.6,0.371]
[1727468617022,3.57879,2694.8,2694.5,0.37102]
[1727468617327,0.37102,2694.6,2694.3,0.37105]
[1727468617514,0.37101,2694.7,2694.4,0.37104]
[1727468617920,0.37103,2694.5,2694.0,6.4651]
[1727468618123,0.74702,2694.6,2694.3,0.37105]
[1727468618423,0.74702,2694.6,2694.0,6.4651]
[1727468618818,0.74702,2694.6,2694.3,0.37105]
[1727468624033,0.37103,2694.5,2694.0,6.4651]
[1727468624228,0.37105,2694.4,2694.1,0.37108]
[1727468625034,0.37106,2694.3,2694.0,3.94619]
[1727468625332,0.37108,2694.2,2694.0,3.5751]
[1727468625523,0.37108,2694.2,2694.0,3.94619]
[1727468625723,0.37106,2694.3,2694.1,0.37108]
[1727468626732,0.37106,2694.3,2694.0,3.94619]
[1727468626932,0.37106,2694.3,2694.1,0.37108]
[1727468627332,0.37106,2694.3,2694.0,3.94619]
[1727468627526,2.89,2694.4,2694.0,3.5751]
[1727468627721,2.89,2694.4,2694.0,3.5789]
[1727468627927,0.37107,2694.2,2694.0,3.5789]
[1727468628533,0.37107,2694.2,2694.0,0.3711]
[1727468629040,0.37109,2694.1,2693.9,3.5789]
[1727468629240,0.37112,2693.9,2693.7,0.37113]
[1727468629435,0.37112,2693.8,2693.7,0.37113]
[1727468630537,0.37114,2693.7,2693.6,0.76604]
[1727468630845,6.0978,2693.9,2693.7,0.37113]
[1727468631134,0.37114,2693.8,2693.6,0.76604]
[1727468631332,6.0978,2693.9,2693.6,0.76604]
[1727468631529,6.0978,2693.9,2693.5,0.37116]
[1727468632331,2.89,2693.7,2693.3,0.387]
[1727468632533,0.37116,2693.6,2693.5,0.37117]
[1727468633131,2.89,2693.7,2693.6,0.37115]
[1727468633132,0.37115,2693.7,2693.6,0.37115]
[1727468633531,0.37115,2693.7,2693.5,0.37116]
[1727468633937,0.37115,2693.7,2693.6,0.37115]
[1727468634935,0.37115,2693.7,2693.5,0.37116]
[1727468635145,0.37115,2693.6,2693.5,0.37116]
[1727468635945,0.37117,2693.5,2693.4,0.37117]
[1727468636141,0.37117,2693.5,2693.3,0.37118]
[1727468636142,0.37118,2693.4,2693.3,0.37118]
[1727468636343,0.76018,2693.4,2693.3,0.37118]
[1727468637239,0.389,2693.4,2693.3,0.37118]
[1727468637538,3.2816,2693.5,2693.4,0.37118]
[1727468638148,3.2816,2693.5,2693.0,0.3964]
[1727468638353,2.89,2693.3,2693.2,0.37121]
[1727468638741,3.26119,2693.3,2693.2,0.37121]
[1727468639742,2.89,2693.3,2693.2,0.37121]
[1727468640144,2.89,2693.3,2693.0,0.37123]
[1727468640145,0.37123,2693.1,2693.0,0.37123]
[1727468640836,0.37123,2693.1,2692.7,0.3779]
[1727468640837,0.37126,2692.8,2692.7,0.37127]
[1727468641035,3.26127,2692.8,2692.7,0.37128]
[1727468641238,6.97487,2692.8,2692.7,0.37128]
[1727468641437,3.26127,2692.8,2692.7,0.37128]
[1727468643145,0.37125,2692.9,2692.8,0.37126]
[1727468643644,0.37127,2692.8,2692.7,0.37127]
[1727468644548,3.2653,2693.0,2692.5,0.3859]
[1727468644849,0.3753,2693.0,2692.9,0.37125]
[1727468645947,0.74654,2693.0,2692.9,0.37125]
[1727468646148,0.3753,2693.0,2692.9,0.37125]
[1727468646348,0.74654,2693.0,2692.9,0.37125]
[1727468646553,0.3753,2693.0,2692.9,0.37125]
[1727468647544,0.74654,2693.0,2692.9,0.37125]
[1727468647950,0.3753,2693.0,2692.9,0.37125]
[1727468648444,0.74654,2693.0,2692.9,0.37125]
[1727468648645,0.3753,2693.0,2692.9,0.37125]
[1727468648840,0.37122,2693.1,2692.6,0.92823]
[1727468649045,3.63532,2693.2,2693.1,0.37122]
[1727468649341,3.6077,2693.3,2693.2,0.37121]
[1727468649342,3.2078,2693.3,2693.2,0.37121]
[1727468649541,3.2899,2693.7,2693.2,0.406]
[1727468649753,0.37118,2693.4,2693.3,0.75659]
[1727468649956,0.37118,2693.4,2693.3,0.37119]
[1727468650544,3.26117,2693.5,2693.4,0.37118]
[1727468652257,0.37117,2693.5,2693.2,0.3739]
[1727468652647,0.37117,2693.5,2693.4,0.37118]
[1727468654156,6.4977,2693.7,2693.5,0.37115]
[1727468654157,0.37115,2693.6,2693.5,0.37115]
[1727468654658,0.37117,2693.5,2693.4,0.37117]
[1727468655247,6.4977,2693.7,2693.2,0.3739]
[1727468655447,0.37115,2693.6,2693.5,0.37115]
[1727468655947,3.2078,2693.7,2693.6,1.29904]
[1727468656155,0.8038,2694.4,2694.2,0.37107]
[1727468656351,0.3711,2694.0,2693.9,0.74251]
[1727468657254,0.3711,2694.0,2693.9,0.3714]
[1727468657457,0.7748,2694.0,2693.9,0.3714]
[1727468657862,0.7748,2694.0,2693.9,0.74251]
[1727468658560,0.7748,2694.0,2693.9,0.3714]
[1727468659062,0.37111,2693.9,2693.8,0.73722]
[1727468659365,0.77481,2694.0,2693.8,0.73722]
[1727468659567,0.77481,2694.0,2693.9,0.37111]
[1727468659754,0.37111,2693.9,2693.8,0.73722]
[1727468660068,3.2078,2694.3,2693.8,0.73722]
[1727468660069,0.4006,2694.5,2693.8,0.3661]
[1727468660366,0.76506,2694.3,2694.1,0.37108]
[1727468660766,0.37108,2694.2,2694.0,0.37109]
[1727468663359,0.37108,2694.2,2693.8,0.7364]
[1727468663360,0.76506,2694.3,2694.1,0.74417]
[1727468663566,0.37107,2694.2,2694.1,0.74417]
[1727468663960,0.76506,2694.3,2694.1,0.74417]
[1727468664160,0.37107,2694.2,2694.1,0.74417]
[1727468664363,0.37107,2694.2,2694.1,0.3731]
[1727468665763,3.26107,2694.2,2694.1,0.3731]
[1727468665965,0.37111,2693.9,2693.6,0.3749]
[1727468667466,0.76381,2693.9,2693.8,0.37112]
[1727468669671,0.3927,2693.9,2693.8,0.37112]
[1727468670169,3.26108,2694.2,2693.7,0.92784]
[1727468670368,3.2701,2694.2,2693.7,0.92784]
[1727468670557,0.37109,2694.1,2694.0,0.37109]
[1727468671865,0.37109,2694.1,2693.8,0.4046]
[1727468671866,0.37111,2693.9,2693.8,0.77571]
[1727468672069,0.37111,2693.9,2693.8,0.37111]
[1727468672458,3.6631,2694.0,2693.9,0.37111]
[1727468673967,0.402,2694.0,2693.9,0.37111]
[1727468674168,0.37109,2694.1,2694.0,0.37108]
[1727468675372,3.64118,2694.2,2694.1,0.37108]
[1727468675562,0.3801,2694.2,2694.1,0.37108]
[1727468675762,0.3711,2694.1,2694.0,0.37109]
[1727468676372,0.3801,2694.2,2694.1,0.37108]
[1727468677075,0.37108,2694.1,2694.0,0.77319]
[1727468678371,0.3801,2694.2,2694.0,0.4021]
[1727468678571,0.75118,2694.2,2694.1,0.37108]
[1727468681768,0.37108,2694.1,2694.0,0.77319]
[1727468685274,0.37108,2694.1,2694.0,0.37109]
[1727468688287,1.71108,2694.1,2694.0,0.37109]
[1727468693583,1.34,2694.1,2694.0,0.37109]
[1727468693776,1.71108,2694.1,2694.0,0.37109]
[1727468694281,1.71108,2694.1,2693.8,1.30581]
[1727468694282,1.83310171,2694.2,2694.1,0.37108]
[1727468694482,2.22955171,2694.4,2694.0,0.92774]
[1727468694678,2.22955171,2694.4,2694.3,0.37106]
[1727468694880,0.77655,2694.4,2694.3,0.37106]
[1727468695279,2.7150406,2694.4,2694.3,0.37106]
[1727468695979,0.37107,2694.3,2694.2,0.37107]
[1727468696284,3.6495606,2694.3,2694.2,0.37107]
[1727468698180,1.71107,2694.3,2694.2,0.37107]
[1727468700184,1.71107,2694.3,2694.1,0.76757]
[1727468700185,0.37107,2694.2,2694.1,0.76757]
[1727468700383,0.37109,2694.1,2693.9,3.6095]
[1727468700689,0.3711,2694.0,2693.9,3.9806]
[1727468700891,4.42048929,2694.1,2694.0,0.3711]
[1727468701188,2.48809,2694.1,2694.0,0.3711]
[1727468701483,2.117,2694.1,2694.0,0.3711]
[1727468701689,0.3971,2694.1,2694.0,0.3711]
[1727468701990,1.84735596,2694.1,2694.0,2.57033508]
[1727468702176,0.3971,2694.1,2694.0,0.3711]
[1727468702382,1.84737416,2694.1,2694.0,1.34336247]
[1727468703178,1.45027416,2694.1,2694.0,1.34336247]
[1727468705283,1.45027416,2694.1,2694.0,2.57040237]
[1727468705988,1.45027416,2694.1,2694.0,2.5258899]
[1727468706189,1.45027416,2694.1,2694.0,3.49969605]
[1727468706582,1.45027416,2694.2,2694.1,1.2988]
[1727468706886,1.45027416,2694.4,2694.3,0.37106]
[1727468707088,1.45027416,2694.5,2694.4,1.29865]
[1727468707387,1.45027416,2694.8,2694.7,1.29851]
[1727468707586,1.45027416,2694.9,2694.8,0.37099]
[1727468707792,1.45027416,2694.9,2694.8,1.73380127]
[1727468707989,4.13405325,2695.2,2694.9,0.37097]
[1727468707990,1.45027416,2695.0,2694.9,0.37097]
[1727468708186,3.64462028,2695.2,2695.0,0.37096]
[1727468708187,1.45027416,2695.1,2695.0,0.37096]
[1727468708582,1.45027416,2695.3,2695.2,0.37093]
[1727468708783,1.45027416,2695.6,2695.4,0.3709]
[1727468709089,1.45027416,2695.6,2695.5,0.37089]
[1727468709282,1.82113416,2695.7,2695.5,0.37089]
[1727468709478,1.82113416,2695.7,2695.3,0.7823]
[1727468709479,0.37088,2695.6,2695.4,0.3709]
[1727468709785,1.82115416,2695.6,2695.4,0.3709]
[1727468709988,2.42311325,2695.6,2695.5,0.37089]
[1727468710292,1.93189631,2695.6,2695.4,0.3709]
[1727468710496,1.44890807,2695.5,2695.4,0.3709]
[1727468711485,1.44890807,2695.6,2695.5,0.37089]
[1727468712192,1.44890807,2695.6,2695.4,0.3709]
[1727468712394,1.81978807,2695.6,2695.4,0.3709]
[1727468712887,1.44890807,2695.6,2695.5,0.37089]
[1727468713396,4.65670807,2695.7,2695.6,0.37088]
[1727468713787,5.02756807,2695.7,2695.5,0.37089]
[1727468713990,5.02756807,2695.7,2695.6,0.37088]
[1727468714299,3.57866,2695.7,2695.6,0.37088]
[1727468715292,2.63140807,2695.8,2695.7,0.37086]
[1727468715293,3.00226807,2695.8,2695.7,0.37086]
[1727468715683,2.63140807,2695.8,2695.3,3.5975]
[1727468715888,0.37088,2695.7,2695.5,0.37088]
[1727468716089,2.63140807,2695.8,2695.7,0.37086]
[1727468716090,1.81976807,2695.8,2695.7,0.37086]
[1727468716293,0.37086,2695.8,2695.7,0.37086]
[1727468716487,1.82620807,2695.9,2695.3,7.42478]
[1727468716688,1.82620807,2695.9,2695.4,0.92727]
[1727468716895,0.37085,2695.8,2695.7,0.37085]
[1727468717292,0.74814,2695.9,2695.8,0.37085]
[1727468720297,0.37088,2695.6,2695.5,0.37088]
[1727468720494,0.3709,2695.5,2695.4,0.3709]
[1727468720795,1.1458,2695.5,2695.4,0.3709]
[1727468720992,0.7749,2695.5,2695.4,0.3709]
[1727468721399,1.1775,2695.5,2695.4,0.3709]
[1727468721899,0.4026,2695.5,2695.4,0.3709]
[1727468722194,3.27086,2695.8,2695.7,0.37086]
[1727468722399,0.37087,2695.7,2695.6,0.37087]
[1727468722793,0.37089,2695.6,2695.5,0.37089]
[1727468723001,0.77349,2695.6,2695.5,0.37089]
[1727468723305,0.37089,2695.5,2695.4,0.3709]
[1727468723493,0.37089,2695.5,2695.3,0.76061]
[1727468723494,0.3709,2695.4,2695.3,0.76061]
[1727468723697,0.3709,2695.4,2695.3,0.37091]
[1727468724004,0.37092,2695.3,2695.2,0.37092]
[1727468725100,0.37091,2695.4,2695.3,0.37091]
[1727468725307,1.1324,2695.5,2695.4,0.3709]
[1727468726503,0.37092,2695.3,2695.2,0.37093]
[1727468727208,0.37091,2695.4,2695.3,0.37091]
[1727468727696,0.37093,2695.3,2695.2,0.37093]
[1727468728605,0.37095,2695.1,2695.0,3.57875]
[1727468728907,3.82729,2695.4,2695.1,0.37094]
[1727468728908,0.37095,2695.2,2695.1,0.37094]
[1727468729605,4.13509,2695.4,2695.3,0.37092]
[1727468729606,3.2078,2695.4,2695.3,0.37092]
[1727468729804,0.3709,2695.5,2695.4,0.3709]
[1727468730004,4.0805,2695.5,2695.4,0.3709]
[1727468730302,0.3709,2695.5,2695.4,0.3709]
[1727468730508,4.0805,2695.5,2695.4,0.3709]
[1727468730707,0.37088,2695.6,2695.5,0.37088]
[1727468731019,0.92718,2695.7,2695.2,0.3752]
[1727468731602,0.3709,2695.5,2695.4,0.3709]
[1727468732913,0.3709,2695.5,2695.2,0.3752]
[1727468732914,1.71089,2695.6,2695.5,0.37089]
[1727468733104,4.014,2695.8,2695.4,2.26725]
[1727468733406,4.014,2695.8,2695.7,0.37086]
[1727468733407,0.4092,2695.8,2695.7,0.37086]
[1727468733613,0.0274,2695.8,2695.7,0.37086]
[1727468735017,0.39825,2695.8,2695.7,0.37086]
[1727468736111,0.0274,2695.8,2695.7,0.37086]
[1727468737722,0.39825,2695.8,2695.7,0.37086]
[1727468739011,0.37088,2695.7,2695.6,0.37087]
[1727468741506,0.37088,2695.6,2695.5,0.37088]
[1727468741701,0.77128,2695.6,2695.5,0.37088]
[1727468741912,0.4004,2695.6,2695.5,0.37088]
[1727468742309,0.77128,2695.6,2695.5,0.37088]
[1727468742509,0.4004,2695.6,2695.5,0.37088]
[1727468744114,0.3709,2695.5,2695.4,0.37089]
[1727468744411,0.7512,2695.5,2695.4,0.37089]
[1727468744820,0.3803,2695.5,2695.4,0.37089]
[1727468745612,0.75119,2695.5,2695.4,0.37089]
[1727468745815,3.5881,2695.5,2694.9,4.13522]
[1727468746016,0.37093,2695.3,2695.2,0.37092]
[1727468746605,0.37092,2695.4,2694.9,1.68142]
[1727468746811,0.37092,2695.4,2695.3,0.37091]
[1727468749216,3.959,2695.5,2695.4,0.3709]
[1727468750620,3.959,2695.5,2694.9,4.57142]
[1727468750621,0.37091,2695.4,2695.3,0.37091]
[1727468751517,5.51999631,2695.5,2695.2,0.37092]
[1727468751518,0.37093,2695.3,2695.2,0.37092]
[1727468752221,1.82343104,2695.3,2695.2,0.37092]
[1727468752422,2.30280631,2695.4,2695.3,0.37092]
[1727468754319,0.37091,2695.4,2695.3,0.37092]
[1727468756420,2.31038544,2695.4,2695.3,0.37092]
[1727468756930,7.23847544,2695.5,2695.4,0.3709]
[1727468757229,7.23876348,2695.5,2695.4,0.3709]
[1727468757523,5.299,2695.5,2695.4,0.3709]
[1727468757930,7.23865011,2695.5,2695.4,0.3709]
[1727468759828,0.37091,2695.4,2695.3,0.37091]
[1727468760227,5.89854525,2695.5,2695.4,0.3709]
[1727468760731,5.51824525,2695.5,2695.4,0.3709]
[1727468760916,1.93954525,2695.5,2695.4,0.3709]
[1727468761121,0.37089,2695.5,2695.4,0.3709]
[1727468761724,1.82609239,2695.5,2695.4,0.7702]
[1727468762029,0.37089,2695.5,2695.4,0.7702]
[1727468763130,1.82597406,2695.5,2695.4,0.7702]
[1727468764232,0.37089,2695.5,2695.4,0.3993]
[1727468764837,0.37089,2695.5,2695.4,0.7702]
[1727468765025,1.82610932,2695.5,2695.4,0.7702]
[1727468765226,0.37089,2695.5,2695.4,0.7702]
[1727468765625,3.08762525,2695.6,2695.5,0.37089]
[1727468765936,0.3768,2695.6,2695.5,0.37089]
[1727468766323,0.74768,2695.6,2695.5,0.37089]
[1727468766521,0.3768,2695.6,2695.5,0.37089]
[1727468766724,1.93954525,2695.6,2695.4,0.3993]
[1727468766930,3.39514952,2695.8,2695.6,0.9272]
[1727468767127,3.39514952,2695.8,2695.7,0.75786]
[1727468767128,1.45560427,2695.8,2695.7,0.75786]
[1727468767332,1.45560427,2695.8,2695.7,1.73046369]
[1727468767518,1.45560427,2695.8,2695.7,0.75786]
[1727468767722,1.82250427,2695.8,2695.7,0.75786]
[1727468767932,0.3669,2695.8,2695.7,0.37086]
[1727468768128,1.11885,2695.8,2695.7,0.37086]
[1727468768520,3.05839525,2695.8,2695.7,0.37086]
[1727468768728,1.11885,2695.8,2695.7,0.37086]
[1727468768923,4.95467525,2695.8,2695.4,1.37190369]
[1727468769228,0.3709,2695.5,2695.3,0.37091]
[1727468769425,2.30644525,2695.4,2695.3,0.37091]
[1727468771628,2.30725525,2695.4,2695.3,0.37091]
[1727468772134,2.30726495,2695.4,2695.3,0.37091]
[1727468772728,3.64726495,2695.4,2695.2,0.75792]
[1727468772929,1.94036495,2695.3,2695.2,0.75792]
[1727468773132,4.01817495,2695.4,2695.3,0.37092]
[1727468773528,3.64726495,2695.4,2695.3,0.37092]
[1727468773730,2.30715214,2695.4,2695.3,0.37092]
[1727468774026,2.30723932,2695.4,2695.3,0.37092]
[1727468774937,2.67813932,2695.4,2695.3,0.37092]
[1727468775439,2.67823919,2695.4,2695.3,0.37092]
[1727468775641,0.7378,2695.4,2695.3,0.37092]
[1727468775936,2.67810955,2695.4,2695.3,0.37092]
[1727468776232,0.7378,2695.4,2695.3,0.37092]
[1727468776435,2.67712734,2695.4,2695.3,0.37092]
[1727468776623,0.7378,2695.4,2695.3,0.37092]
[1727468776828,2.67705838,2695.4,2695.3,0.37092]
[1727468777441,0.7378,2695.4,2695.3,0.37092]
[1727468777641,2.19233895,2695.4,2695.3,0.37092]
[1727468780934,0.3669,2695.4,2695.3,0.37092]
[1727468781246,1.45479413,2695.4,2695.3,2.27082369]
[1727468781437,1.45479413,2695.4,2695.3,1.29822]
[1727468781635,1.45479413,2695.4,2695.3,2.27082369]
[1727468781835,1.45479413,2695.4,2695.3,5.98122369]
[1727468782139,1.45490181,2695.4,2695.3,5.98122369]
[1727468782341,1.45490181,2695.5,2695.4,0.3709]
[1727468782534,2.69033838,2695.6,2695.5,0.37089]
[1727468783144,0.75108,2695.6,2695.5,0.37089]
[1727468783343,2.69033838,2695.6,2695.5,0.37089]
[1727468784542,3.17419325,2695.6,2695.5,0.37089]
[1727468785144,2.80331325,2695.6,2695.5,0.37089]
[1727468785338,2.42311325,2695.6,2695.5,0.37089]
[1727468785539,3.17788325,2695.7,2695.6,0.37088]
[1727468787140,0.75477,2695.7,2695.6,0.37088]
[1727468787934,0.3839,2695.7,2695.6,0.37088]
[1727468788137,0.75476,2695.7,2695.6,0.37088]
[1727468790142,3.17918258,2695.7,2695.6,0.37088]
[1727468791547,2.80832258,2695.7,2695.6,0.37088]
[1727468792549,2.32316648,2695.7,2695.6,0.37088]
[1727468794649,2.69402648,2695.7,2695.6,0.37088]
[1727468795752,2.32316648,2695.7,2695.6,0.37088]
[1727468796550,2.69342885,2695.7,2695.6,0.37088]
[1727468797849,2.69342885,2695.7,2695.6,0.75918]
[1727468799554,0.75476,2695.7,2695.6,0.75918]
[1727468799857,0.3839,2695.7,2695.6,0.75918]
[1727468800358,0.75476,2695.7,2695.6,0.75918]
[1727468800555,0.3839,2695.7,2695.5,0.74748]
[1727468800851,1.93900867,2695.7,2695.6,13.05282342]
[1727468801058,1.93909955,2695.9,2695.8,0.92713]
[1727468801353,2.42347218,2696.0,2695.8,2.26713]
[1727468801354,1.93909955,2696.0,2695.8,2.26713]
[1727468801545,1.93909955,2696.0,2695.9,1.69414]
[1727468801745,1.93909955,2696.0,2695.9,2.09954]
[1727468802543,1.93909955,2696.1,2696.0,0.37082]
[1727468802749,2.80377218,2696.2,2696.1,0.37081]
[1727468803857,4.14377218,2696.2,2695.9,0.8016]
[1727468804051,2.79429218,2696.1,2695.7,0.3856]
[1727468804362,1.45301735,2695.8,2695.7,1.14686]
[1727468804750,1.45301735,2695.8,2695.7,4.85646]
[1727468805054,1.45301735,2695.8,2695.7,2.48686]
[1727468805253,1.45301735,2695.8,2695.7,6.19646]
[1727468805554,1.45301735,2695.8,2695.7,2.48686]
[1727468805860,1.45301735,2695.8,2695.7,6.19646]
[1727468806152,1.45301735,2695.8,2695.7,2.48686]
[1727468806360,1.45301735,2695.8,2695.7,0.76126]
[1727468806558,2.71289647,2695.9,2695.8,0.37085]
[1727468807153,2.34205647,2695.9,2695.8,0.37085]
[1727468807555,1.85726683,2695.9,2695.8,0.37085]
[1727468814555,2.34205647,2695.9,2695.8,0.37085]
[1727468816567,0.4047,2695.9,2695.8,0.37085]
[1727468816969,0.77554,2695.9,2695.8,0.37085]
[1727468817169,2.34205647,2695.9,2695.8,0.37085]
[1727468817664,2.71289647,2695.9,2695.8,0.37085]
[1727468817862,0.77554,2695.9,2695.8,0.37085]
[1727468818060,0.4047,2695.9,2695.8,0.37085]
[1727468818971,2.34205647,2695.9,2695.8,0.37085]
[1727468820069,0.4047,2695.9,2695.8,0.37085]
[1727468820878,2.34205647,2695.9,2695.8,0.37085]
[1727468821168,2.71289647,2695.9,2695.8,0.37085]
[1727468821473,2.34205647,2695.9,2695.8,0.37085]
[1727468821668,1.85660625,2695.9,2695.8,0.37085]
[1727468822073,0.4047,2695.9,2695.8,0.37085]
[1727468822572,2.59384625,2695.9,2695.8,0.37085]
[1727468822772,2.22300625,2695.9,2695.8,0.37085]
[1727468824370,1.45190625,2696.0,2695.9,0.37084]
[1727468824674,3.2078,2696.1,2696.0,0.37082]
[1727468824675,5.03051625,2696.1,2696.0,0.37082]
[1727468824971,1.45190625,2696.2,2696.1,0.37081]
[1727468826367,0.37081,2696.1,2695.9,0.3774]
[1727468826676,0.37081,2696.1,2695.9,0.37084]
[1727468826677,2.58641625,2696.1,2695.9,0.37084]
[1727468826871,0.74872,2696.0,2695.8,3.57864]
[1727468827178,1.34,2695.9,2695.4,0.97288339]
[1727468827467,1.34,2695.9,2695.6,0.37088]
[1727468827468,1.45163605,2695.8,2695.6,0.37088]